[Event "*** Titled Tuesday Blitz"]
[Site "Chess.com"]
[Date "2019.11.05"]
[Round "3"]
[White "Sanan_Sjugirov"]
[Black "RiskyDecision"]
[Result "1/2-1/2"]
[WhiteElo "2961"]
[BlackElo "2523"]
[TimeControl "180+2"]
[EndTime "13:41:29 PST"]
[Termination "Game drawn - insufficient material"]

1. Nf3 {[%clk 0:03:01.9]} 1... f5 {[%clk 0:03:00.3]} 2. d3 {[%clk 0:02:56.5]}
2... Nc6 {[%clk 0:03:00.7]} 3. d4 {[%clk 0:02:56.1]} 3... e6 {[%clk 0:02:59.8]}
4. g3 {[%clk 0:02:52.3]} 4... Nf6 {[%clk 0:02:59.7]} 5. Bg2 {[%clk 0:02:53.4]}
5... d6 {[%clk 0:02:58.5]} 6. O-O {[%clk 0:02:49.9]} 6... e5 {[%clk 0:02:57]} 7.
c4 {[%clk 0:02:46]} 7... Be7 {[%clk 0:02:46]} 8. Nc3 {[%clk 0:02:45.1]} 8... O-O
{[%clk 0:02:46.2]} 9. d5 {[%clk 0:02:25.1]} 9... Nb8 {[%clk 0:02:44.5]} 10. Ng5
{[%clk 0:02:19.9]} 10... Na6 {[%clk 0:02:29.5]} 11. e4 {[%clk 0:01:48.1]} 11...
Nc5 {[%clk 0:02:27.4]} 12. exf5 {[%clk 0:01:44.2]} 12... Bxf5 {[%clk 0:02:28.2]}
13. b4 {[%clk 0:01:41.3]} 13... Nd3 {[%clk 0:02:23.2]} 14. a3 {[%clk 0:01:21.6]}
14... Nxc1 {[%clk 0:02:19.7]} 15. Rxc1 {[%clk 0:01:19.8]} 15... a5 {[%clk
0:02:13.1]} 16. Ne6 {[%clk 0:01:16.9]} 16... Bxe6 {[%clk 0:02:13.3]} 17. dxe6
{[%clk 0:01:18.8]} 17... axb4 {[%clk 0:02:12.2]} 18. axb4 {[%clk 0:01:20.7]}
18... c6 {[%clk 0:02:12.8]} 19. b5 {[%clk 0:01:21.9]} 19... Qb6 {[%clk
0:02:02.1]} 20. Rb1 {[%clk 0:01:12.5]} 20... Qc5 {[%clk 0:01:50.7]} 21. bxc6
{[%clk 0:01:10.7]} 21... bxc6 {[%clk 0:01:51.5]} 22. Na4 {[%clk 0:01:11]} 22...
Qxc4 {[%clk 0:01:20.1]} 23. Nb6 {[%clk 0:01:11.4]} 23... Qxe6 {[%clk 0:01:17.4]}
24. Nxa8 {[%clk 0:01:10.9]} 24... Rxa8 {[%clk 0:01:18.4]} 25. Bxc6 {[%clk
0:01:11.7]} 25... Rc8 {[%clk 0:01:17.9]} 26. Bg2 {[%clk 0:01:07.1]} 26... d5
{[%clk 0:01:10.5]} 27. Qb3 {[%clk 0:00:55.5]} 27... Rd8 {[%clk 0:01:08.4]} 28.
Qb6 {[%clk 0:00:49.7]} 28... Qxb6 {[%clk 0:01:04]} 29. Rxb6 {[%clk 0:00:49.9]}
29... Kf7 {[%clk 0:01:01.5]} 30. Rb7 {[%clk 0:00:49.6]} 30... e4 {[%clk
0:00:51]} 31. Rd1 {[%clk 0:00:47.7]} 31... d4 {[%clk 0:00:38.7]} 32. Bf1 {[%clk
0:00:38.6]} 32... d3 {[%clk 0:00:32.1]} 33. f3 {[%clk 0:00:31.6]} 33... exf3
{[%clk 0:00:24.8]} 34. Rxd3 {[%clk 0:00:29.5]} 34... Rxd3 {[%clk 0:00:21.8]} 35.
Bxd3 {[%clk 0:00:31.4]} 35... Kf8 {[%clk 0:00:18]} 36. Rc7 {[%clk 0:00:08.5]}
36... Ng4 {[%clk 0:00:16.1]} 37. h3 {[%clk 0:00:07.9]} 37... Ne5 {[%clk
0:00:14.1]} 38. Be4 {[%clk 0:00:07.2]} 38... Bf6 {[%clk 0:00:12]} 39. Kf2 {[%clk
0:00:07.4]} 39... h6 {[%clk 0:00:11.3]} 40. Bxf3 {[%clk 0:00:07.5]} 40... Nd3+
{[%clk 0:00:10.5]} 41. Kg2 {[%clk 0:00:07.9]} 41... Ne5 {[%clk 0:00:11.6]} 42.
Be4 {[%clk 0:00:07.6]} 42... Ke8 {[%clk 0:00:12.3]} 43. Rc8+ {[%clk 0:00:08.5]}
43... Ke7 {[%clk 0:00:13.2]} 44. Rc2 {[%clk 0:00:10.4]} 44... Ke6 {[%clk
0:00:14.2]} 45. Re2 {[%clk 0:00:11]} 45... Be7 {[%clk 0:00:15.2]} 46. Ra2 {[%clk
0:00:11.9]} 46... Bf6 {[%clk 0:00:16]} 47. Bc2 {[%clk 0:00:13.7]} 47... Ke7
{[%clk 0:00:17.2]} 48. Bb3 {[%clk 0:00:15.4]} 48... Kd6 {[%clk 0:00:17.9]} 49.
Ra6+ {[%clk 0:00:16]} 49... Ke7 {[%clk 0:00:18.4]} 50. h4 {[%clk 0:00:16]} 50...
Kd7 {[%clk 0:00:19]} 51. Kh3 {[%clk 0:00:17]} 51... Ke7 {[%clk 0:00:19.8]} 52.
Bd1 {[%clk 0:00:16]} 52... Kf7 {[%clk 0:00:19.8]} 53. Bh5+ {[%clk 0:00:16.6]}
53... Ke7 {[%clk 0:00:20.4]} 54. Be2 {[%clk 0:00:18.5]} 54... Kf7 {[%clk
0:00:20.4]} 55. g4 {[%clk 0:00:18.6]} 55... Ke7 {[%clk 0:00:19.9]} 56. Ra7+
{[%clk 0:00:18.4]} 56... Ke6 {[%clk 0:00:19.7]} 57. Ra6+ {[%clk 0:00:20.3]}
57... Ke7 {[%clk 0:00:20.6]} 58. Ra5 {[%clk 0:00:22.2]} 58... Ng6 {[%clk
0:00:20.7]} 59. Ra7+ {[%clk 0:00:07.6]} 59... Kd6 {[%clk 0:00:19.3]} 60. Ra6+
{[%clk 0:00:08.7]} 60... Ke7 {[%clk 0:00:19.8]} 61. Bd3 {[%clk 0:00:08.1]} 61...
Nf4+ {[%clk 0:00:20.3]} 62. Kg3 {[%clk 0:00:09.1]} 62... Nxd3 {[%clk 0:00:21.6]}
63. Ra7+ {[%clk 0:00:09.3]} 63... Ke6 {[%clk 0:00:22.1]} 64. Ra6+ {[%clk
0:00:11.2]} 64... Ke5 {[%clk 0:00:22.2]} 65. Ra5+ {[%clk 0:00:11]} 65... Ke4
{[%clk 0:00:23.2]} 66. g5 {[%clk 0:00:12.5]} 66... hxg5 {[%clk 0:00:23]} 67.
hxg5 {[%clk 0:00:14.3]} 67... Be5+ {[%clk 0:00:24.3]} 68. Kg4 {[%clk 0:00:15.7]}
68... Nf2+ {[%clk 0:00:22.6]} 69. Kh5 {[%clk 0:00:16.9]} 69... Nd3 {[%clk
0:00:22.2]} 70. Kg6 {[%clk 0:00:17.2]} 70... Nf4+ {[%clk 0:00:21.4]} 71. Kf7
{[%clk 0:00:18.4]} 71... Nh3 {[%clk 0:00:20.6]} 72. Rxe5+ {[%clk 0:00:16.5]}
72... Kxe5 {[%clk 0:00:20.9]} 73. Kxg7 {[%clk 0:00:18.4]} 73... Nxg5 {[%clk
0:00:21.7]} 1/2-1/2

[Event "*** Titled Tuesday Blitz"]
[Site "Chess.com"]
[Date "2019.11.05"]
[Round "3"]
[White "DrRiebert"]
[Black "Heineccius"]
[Result "1-0"]
[WhiteElo "2405"]
[BlackElo "2583"]
[TimeControl "180+2"]
[EndTime "13:41:50 PST"]
[Termination "DrRiebert won by resignation"]

1. e4 {[%clk 0:03:01.9]} 1... c5 {[%clk 0:03:01.1]} 2. Nf3 {[%clk 0:03:02.4]}
2... e6 {[%clk 0:03:01.9]} 3. d4 {[%clk 0:03:03.7]} 3... cxd4 {[%clk 0:03:03.1]}
4. Nxd4 {[%clk 0:03:05.6]} 4... a6 {[%clk 0:03:04.4]} 5. Nc3 {[%clk 0:03:06]}
5... Qc7 {[%clk 0:03:04.6]} 6. g3 {[%clk 0:03:06.3]} 6... Bb4 {[%clk 0:03:03.8]}
7. Bd2 {[%clk 0:03:06]} 7... Nf6 {[%clk 0:03:01.4]} 8. Bg2 {[%clk 0:03:05.7]}
8... Nc6 {[%clk 0:03:01.1]} 9. Nxc6 {[%clk 0:03:04.5]} 9... dxc6 {[%clk
0:03:00.8]} 10. O-O {[%clk 0:03:05.1]} 10... Be7 {[%clk 0:02:56.3]} 11. f4
{[%clk 0:02:47.7]} 11... e5 {[%clk 0:02:54.8]} 12. f5 {[%clk 0:02:41.4]} 12...
Bc5+ {[%clk 0:02:39.8]} 13. Kh1 {[%clk 0:02:40.8]} 13... h5 {[%clk 0:02:41]} 14.
Bf3 {[%clk 0:02:05.8]} 14... b5 {[%clk 0:02:22]} 15. Bg5 {[%clk 0:01:58.8]}
15... Bb7 {[%clk 0:02:21.8]} 16. Bxf6 {[%clk 0:01:52.8]} 16... gxf6 {[%clk
0:02:23.1]} 17. a4 {[%clk 0:01:46.3]} 17... h4 {[%clk 0:02:14.3]} 18. g4 {[%clk
0:01:39.8]} 18... h3 {[%clk 0:02:15.6]} 19. Qe1 {[%clk 0:01:28.6]} 19... Ke7
{[%clk 0:02:05.5]} 20. Nb1 {[%clk 0:01:20]} 20... Rad8 {[%clk 0:01:47.1]} 21.
Nd2 {[%clk 0:01:19.9]} 21... Bb4 {[%clk 0:01:41.7]} 22. c3 {[%clk 0:01:20.1]}
22... Bc5 {[%clk 0:01:41.1]} 23. Nb3 {[%clk 0:01:03.7]} 23... Bb6 {[%clk
0:01:39.1]} 24. Qe2 {[%clk 0:00:56.9]} 24... Qd7 {[%clk 0:01:19.2]} 25. Rfd1
{[%clk 0:00:53.2]} 25... Qc8 {[%clk 0:01:15.2]} 26. c4 {[%clk 0:00:51.8]} 26...
Rxd1+ {[%clk 0:01:07.9]} 27. Qxd1 {[%clk 0:00:51.9]} 27... Rd8 {[%clk 0:01:01]}
28. Qf1 {[%clk 0:00:52.6]} 28... Be3 {[%clk 0:00:55.3]} 29. c5 {[%clk
0:00:47.7]} 29... Qd7 {[%clk 0:00:41]} 30. Rd1 {[%clk 0:00:44.6]} 30... Qc7
{[%clk 0:00:40.2]} 31. a5 {[%clk 0:00:44]} 31... Rxd1 {[%clk 0:00:37.7]} 32.
Bxd1 {[%clk 0:00:37.9]} 32... Qd7 {[%clk 0:00:37.4]} 33. Bc2 {[%clk 0:00:33.3]}
33... Bf4 {[%clk 0:00:36.5]} 34. Qxh3 {[%clk 0:00:32.6]} 34... Bc8 {[%clk
0:00:31.8]} 35. Qd3 {[%clk 0:00:32.6]} 35... Qc7 {[%clk 0:00:32.2]} 36. h4
{[%clk 0:00:32.5]} 36... Bd7 {[%clk 0:00:27.1]} 37. Kg2 {[%clk 0:00:33.2]} 37...
Qc8 {[%clk 0:00:26.8]} 38. Qd6+ {[%clk 0:00:32.9]} 38... Ke8 {[%clk 0:00:27.7]}
39. Qxf6 {[%clk 0:00:33.6]} 39... Qc7 {[%clk 0:00:24]} 40. g5 {[%clk 0:00:31.9]}
40... Bc8 {[%clk 0:00:23.5]} 41. Qh8+ {[%clk 0:00:28.9]} 41... Ke7 {[%clk
0:00:22.6]} 42. g6 {[%clk 0:00:29.4]} 42... fxg6 {[%clk 0:00:17.4]} 43. Qg7+
{[%clk 0:00:30.3]} 43... Kd8 {[%clk 0:00:18.5]} 44. Qf8+ {[%clk 0:00:31.4]}
44... Kd7 {[%clk 0:00:20]} 45. fxg6 {[%clk 0:00:32]} 45... Qd8 {[%clk
0:00:20.5]} 46. Qd6+ {[%clk 0:00:29.3]} 46... Ke8 {[%clk 0:00:20.7]} 47. Qxd8+
{[%clk 0:00:30.4]} 47... Kxd8 {[%clk 0:00:21.2]} 48. Bd1 {[%clk 0:00:23.7]}
48... Be6 {[%clk 0:00:22.1]} 49. Na1 {[%clk 0:00:24.7]} 49... Ke7 {[%clk
0:00:22.6]} 50. Nc2 {[%clk 0:00:23.1]} 50... Kf6 {[%clk 0:00:23.6]} 51. h5
{[%clk 0:00:24.3]} 51... Bb3 {[%clk 0:00:20.8]} 52. Nb4 {[%clk 0:00:18.2]} 52...
Bxd1 {[%clk 0:00:20.3]} 53. Nxa6 {[%clk 0:00:18.6]} 53... Bd2 {[%clk 0:00:19.8]}
54. Nb8 {[%clk 0:00:18.1]} 54... Bxa5 {[%clk 0:00:19.2]} 55. Nxc6 {[%clk
0:00:19.5]} 55... Bc7 {[%clk 0:00:19.3]} 56. Na7 {[%clk 0:00:14.7]} 56... Bxh5
{[%clk 0:00:17.6]} 57. Nxb5 {[%clk 0:00:15.5]} 57... Bd8 {[%clk 0:00:18.4]} 58.
Nd6 {[%clk 0:00:13.6]} 58... Bxg6 {[%clk 0:00:18.6]} 59. b4 {[%clk 0:00:11.9]}
59... Ke6 {[%clk 0:00:18.3]} 60. Kf3 {[%clk 0:00:12.3]} 60... Be7 {[%clk
0:00:19.3]} 61. Nc4 {[%clk 0:00:11.9]} 61... Bh5+ {[%clk 0:00:20.7]} 62. Ke3
{[%clk 0:00:12.3]} 62... Bg5+ {[%clk 0:00:22.1]} 63. Kd3 {[%clk 0:00:13.2]}
63... Be8 {[%clk 0:00:23.5]} 64. Na3 {[%clk 0:00:12.9]} 64... Bd7 {[%clk
0:00:24]} 65. Kc2 {[%clk 0:00:10.2]} 65... Be7 {[%clk 0:00:25.1]} 66. Kc3 {[%clk
0:00:10.5]} 66... Be8 {[%clk 0:00:26.7]} 67. Kc4 {[%clk 0:00:11.5]} 67... Bh5
{[%clk 0:00:27]} 68. b5 {[%clk 0:00:10.4]} 68... Be2+ {[%clk 0:00:28.1]} 69. Kb4
{[%clk 0:00:11.4]} 69... Kd7 {[%clk 0:00:29.7]} 70. Nb1 {[%clk 0:00:11.7]} 70...
Bd3 {[%clk 0:00:30.3]} 71. Nc3 {[%clk 0:00:12.8]} 71... Bf8 {[%clk 0:00:29.7]}
72. Nd5 {[%clk 0:00:07.1]} 72... Kc8 {[%clk 0:00:27.4]} 73. Nf6 {[%clk
0:00:04.1]} 73... Be7 {[%clk 0:00:24.8]} 74. Nd5 {[%clk 0:00:04.9]} 74... Bd8
{[%clk 0:00:25.8]} 75. Nc3 {[%clk 0:00:05.9]} 75... Kb7 {[%clk 0:00:25.9]} 76.
c6+ {[%clk 0:00:06.2]} 76... Ka7 {[%clk 0:00:23.2]} 77. Kc5 {[%clk 0:00:07.3]}
77... Bb6+ {[%clk 0:00:22.7]} 78. Kd6 {[%clk 0:00:08.4]} 78... Bd4 {[%clk
0:00:23]} 79. c7 {[%clk 0:00:09.6]} 79... Bxc3 {[%clk 0:00:18]} 80. c8=Q {[%clk
0:00:08.3]} 80... Ba5 {[%clk 0:00:19.5]} 81. Qa6+ {[%clk 0:00:06.3]} 1-0

[Event "*** Titled Tuesday Blitz"]
[Site "Chess.com"]
[Date "2019.11.05"]
[Round "3"]
[White "Gubajdullin"]
[Black "FrenchMonster2002"]
[Result "1-0"]
[WhiteElo "2619"]
[BlackElo "2409"]
[TimeControl "180+2"]
[EndTime "13:41:59 PST"]
[Termination "Gubajdullin won by resignation"]

1. d4 {[%clk 0:03:00.4]} 1... Nf6 {[%clk 0:02:59.9]} 2. Bf4 {[%clk 0:02:57]}
2... g6 {[%clk 0:02:58.4]} 3. e3 {[%clk 0:02:57.2]} 3... Bg7 {[%clk 0:02:59.1]}
4. Nf3 {[%clk 0:02:57.8]} 4... O-O {[%clk 0:03:00.6]} 5. Be2 {[%clk 0:02:58.2]}
5... c5 {[%clk 0:03:01.3]} 6. O-O {[%clk 0:02:58.5]} 6... b6 {[%clk 0:03:02.6]}
7. h4 {[%clk 0:02:58.5]} 7... Bb7 {[%clk 0:03:02.9]} 8. a4 {[%clk 0:02:58.7]}
8... a6 {[%clk 0:02:54.3]} 9. Nc3 {[%clk 0:02:58.2]} 9... d6 {[%clk 0:02:55.3]}
10. dxc5 {[%clk 0:02:52.4]} 10... bxc5 {[%clk 0:02:53]} 11. Nd2 {[%clk
0:02:52.7]} 11... Nbd7 {[%clk 0:02:31.9]} 12. a5 {[%clk 0:02:52.5]} 12... e5
{[%clk 0:02:31]} 13. Bh2 {[%clk 0:02:49.7]} 13... d5 {[%clk 0:02:32.3]} 14. h5
{[%clk 0:02:45.3]} 14... d4 {[%clk 0:02:30.4]} 15. Na4 {[%clk 0:02:41.1]} 15...
Nd5 {[%clk 0:02:15.4]} 16. hxg6 {[%clk 0:02:40]} 16... hxg6 {[%clk 0:02:00.6]}
17. Nc4 {[%clk 0:02:40.1]} 17... Qe7 {[%clk 0:01:52.2]} 18. Bf3 {[%clk
0:02:31.8]} 18... f5 {[%clk 0:01:14.6]} 19. Bxd5+ {[%clk 0:02:21.1]} 19... Bxd5
{[%clk 0:01:15.1]} 20. Ncb6 {[%clk 0:02:21.4]} 20... Nxb6 {[%clk 0:01:01.8]} 21.
Nxb6 {[%clk 0:02:21]} 21... Rad8 {[%clk 0:01:01]} 22. Nxd5 {[%clk 0:02:20.9]}
22... Rxd5 {[%clk 0:01:02.9]} 23. Qe2 {[%clk 0:02:21.4]} 23... Qe6 {[%clk
0:00:44.7]} 24. e4 {[%clk 0:02:17.9]} 24... Rd7 {[%clk 0:00:31.6]} 25. b3 {[%clk
0:02:16.7]} 25... f4 {[%clk 0:00:30.4]} 26. f3 {[%clk 0:02:16.3]} 26... g5
{[%clk 0:00:31.7]} 27. Rfb1 {[%clk 0:02:14.4]} 27... Rf6 {[%clk 0:00:27.2]} 28.
Qc4 {[%clk 0:02:13.8]} 28... Bf8 {[%clk 0:00:24.8]} 29. Ra4 {[%clk 0:02:05.9]}
29... g4 {[%clk 0:00:21.6]} 30. fxg4 {[%clk 0:02:05]} 30... Kg7 {[%clk
0:00:19.2]} 31. Qxe6 {[%clk 0:02:04.7]} 31... Rxe6 {[%clk 0:00:21.1]} 32. Rd1
{[%clk 0:01:58.3]} 32... Rg6 {[%clk 0:00:20.8]} 33. Kf2 {[%clk 0:01:57.7]} 33...
Rxg4 {[%clk 0:00:22]} 34. g3 {[%clk 0:01:56.5]} 34... fxg3+ {[%clk 0:00:19.9]}
35. Bxg3 {[%clk 0:01:54.6]} 35... Rxe4 {[%clk 0:00:21.8]} 36. Rg1 {[%clk
0:01:46.1]} 36... Kf7 {[%clk 0:00:20.9]} 37. Raa1 {[%clk 0:01:44.7]} 37... Bh6
{[%clk 0:00:21.6]} 38. Rh1 {[%clk 0:01:43.8]} 38... Bg7 {[%clk 0:00:17.2]} 39.
Rh7 {[%clk 0:01:34.4]} 39... Rg4 {[%clk 0:00:17.9]} 40. Bxe5 {[%clk 0:01:33.4]}
40... Ke6 {[%clk 0:00:18.3]} 41. Bxg7 {[%clk 0:01:29.8]} 41... Rdxg7 {[%clk
0:00:20.2]} 42. Re1+ {[%clk 0:01:29.4]} 42... Kd5 {[%clk 0:00:20.7]} 43. Rh5+
{[%clk 0:01:29.4]} 43... R7g5 {[%clk 0:00:21.7]} 44. Rxg5+ {[%clk 0:01:24.8]}
44... Rxg5 {[%clk 0:00:23.6]} 45. Re8 {[%clk 0:01:24.5]} 45... Rh5 {[%clk
0:00:16.3]} 46. Ke2 {[%clk 0:01:21.1]} 46... Rh2+ {[%clk 0:00:16.5]} 47. Kd3
{[%clk 0:01:19.5]} 47... Rh3+ {[%clk 0:00:17.9]} 48. Kd2 {[%clk 0:01:19.2]}
48... Rh2+ {[%clk 0:00:18.3]} 49. Kc1 {[%clk 0:01:19.7]} 49... Rh6 {[%clk
0:00:17.6]} 50. Rb8 {[%clk 0:01:18.3]} 50... c4 {[%clk 0:00:11.7]} 51. Rd8+
{[%clk 0:01:18]} 51... Kc5 {[%clk 0:00:06.6]} 52. Rc8+ {[%clk 0:01:17.5]} 52...
Kb5 {[%clk 0:00:07.4]} 53. Rxc4 {[%clk 0:01:17.3]} 53... Rd6 {[%clk 0:00:08.3]}
54. Kd2 {[%clk 0:01:16.4]} 54... Kxa5 {[%clk 0:00:09]} 55. Kd3 {[%clk
0:01:16.8]} 55... Kb5 {[%clk 0:00:10.6]} 56. Rxd4 {[%clk 0:01:17.1]} 56... Rh6
{[%clk 0:00:12.5]} 57. Rf4 {[%clk 0:01:12]} 57... a5 {[%clk 0:00:11.5]} 58. Kc3
{[%clk 0:01:11.3]} 58... Rc6+ {[%clk 0:00:11.1]} 59. Kb2 {[%clk 0:01:11.3]}
59... Rh6 {[%clk 0:00:12.1]} 60. Ka3 {[%clk 0:01:11]} 60... Rh2 {[%clk
0:00:10.7]} 61. c4+ {[%clk 0:01:10.8]} 61... Kb6 {[%clk 0:00:12.2]} 62. Rf6+
{[%clk 0:01:10.8]} 62... Kc5 {[%clk 0:00:10.6]} 63. Ra6 {[%clk 0:01:10]} 63...
Kd4 {[%clk 0:00:08.1]} 64. Rxa5 {[%clk 0:01:08.9]} 64... Rh1 {[%clk 0:00:07.5]}
65. Ka4 {[%clk 0:01:06.4]} 65... Kc3 {[%clk 0:00:05.4]} 66. b4 {[%clk
0:01:00.5]} 66... Kxc4 {[%clk 0:00:05.1]} 67. Rc5+ {[%clk 0:01:00.1]} 67... Kd4
{[%clk 0:00:06.4]} 68. Kb5 {[%clk 0:01:00]} 68... Rb1 {[%clk 0:00:04.8]} 69. Rc8
{[%clk 0:00:58]} 69... Kd5 {[%clk 0:00:05.4]} 70. Rd8+ {[%clk 0:00:57.3]} 70...
Ke6 {[%clk 0:00:06.6]} 71. Rd2 {[%clk 0:00:56.7]} 71... Ke7 {[%clk 0:00:06.6]}
72. Kc5 {[%clk 0:00:56.4]} 72... Rc1+ {[%clk 0:00:05.6]} 73. Kb6 {[%clk
0:00:56.4]} 73... Rb1 {[%clk 0:00:07.2]} 74. b5 {[%clk 0:00:56.2]} 74... Rc1
{[%clk 0:00:06.2]} 75. Ka7 {[%clk 0:00:55.5]} 75... Ra1+ {[%clk 0:00:07.5]} 76.
Kb7 {[%clk 0:00:55]} 76... Rb1 {[%clk 0:00:08.9]} 77. b6 {[%clk 0:00:54.8]}
77... Rc1 {[%clk 0:00:10]} 78. Ka7 {[%clk 0:00:54.2]} 78... Ra1+ {[%clk
0:00:11.1]} 79. Kb8 {[%clk 0:00:53.9]} 79... Rb1 {[%clk 0:00:13]} 80. b7 {[%clk
0:00:53.9]} 80... Rc1 {[%clk 0:00:12.6]} 81. Rd4 {[%clk 0:00:52.4]} 81... Rb1
{[%clk 0:00:11.9]} 82. Kc7 {[%clk 0:00:51.3]} 82... Rc1+ {[%clk 0:00:12.8]} 83.
Kb6 {[%clk 0:00:51.4]} 83... Rb1+ {[%clk 0:00:13.2]} 84. Kc6 {[%clk 0:00:51.3]}
84... Rb3 {[%clk 0:00:07.3]} 85. Rd5 {[%clk 0:00:49]} 85... Rc3+ {[%clk
0:00:05.7]} 86. Rc5 {[%clk 0:00:48.7]} 86... Rb3 {[%clk 0:00:07.3]} 87. Rb5
{[%clk 0:00:48.6]} 87... Rc3+ {[%clk 0:00:08.4]} 88. Kd5 {[%clk 0:00:48.3]}
88... Rd3+ {[%clk 0:00:08]} 89. Ke4 {[%clk 0:00:47.7]} 1-0